bitfinex-derivatives/quotes_SOLF0:USTF0_20250730
["timestamp","ask_amount","ask_price","bid_price","bid_amount"]
[1753906222219,3.0,177.35,177.25,9.792312]
[1753906222422,8.6408,177.28,177.26,3.25]
[1753906222717,3.0,177.35,177.25,6.542312]
[1753906223015,3.0,177.35,177.25,9.792312]
[1753906223312,5.6407,177.28,177.25,9.792312]
[1753906223518,6.542312,177.36,177.25,9.792312]
[1753906223713,3.0,177.35,177.25,6.542312]
[1753906223917,3.0,177.33,177.25,6.542312]
[1753906224113,6.542312,177.34,177.25,6.542312]
[1753906224316,3.0,177.33,177.25,6.542312]
[1753906224519,3.0,177.33,177.24,6.542312]
[1753906224817,5.6414,177.26,177.24,9.792312]
[1753906225018,3.0,177.26,177.24,9.792312]
[1753906225318,3.0,177.23,177.21,9.792312]
[1753906225514,3.0,177.23,177.21,3.25]
[1753906225720,8.6427,177.21,177.2,124.09964425]
[1753906226415,3.0,177.24,177.21,3.25]
[1753906226815,3.0,177.26,177.23,3.25]
[1753906227115,3.0,177.23,177.21,9.792312]
[1753906227719,8.6418,177.24,177.21,9.792312]
[1753906227912,8.6421,177.23,177.21,9.792312]
[1753906228221,3.0,177.29,177.21,9.792312]
[1753906228417,5.6413,177.26,177.22,3.25]
[1753906228618,8.6413,177.26,177.22,3.2]
[1753906228822,8.6413,177.26,177.23,3.2]
[1753906229218,3.1,177.23,177.21,6.542312]
[1753906229614,8.7422,177.23,177.21,6.542312]
[1753906230321,3.1,177.22,177.2,124.09964425]
[1753906230521,3.1,177.21,177.2,124.09964425]
[1753906230715,8.7427,177.21,177.2,124.09964425]
[1753906231726,3.1,177.21,177.2,124.09964425]
[1753906231922,6.542312,177.28,177.2,127.29964425]
[1753906232127,3.1,177.27,177.2,3.2]
[1753906232421,8.7421,177.23,177.2,3.2]
[1753906232616,6.542312,177.3,177.19,6.542312]
[1753906232816,3.1,177.29,177.19,6.542312]
[1753906233018,3.1,177.29,177.2,3.2]
[1753906234219,5.6418,177.24,177.2,3.2]
[1753906234420,3.1,177.23,177.21,3.2]
[1753906234824,6.542312,177.3,177.19,9.742312]
[1753906235027,3.1,177.21,177.18,109.08]
[1753906235327,3.1,177.19,177.18,109.08]
[1753906235522,3.1,177.21,177.18,109.08]
[1753906235722,3.1,177.21,177.18,112.28]
[1753906235917,6.542312,177.28,177.18,109.08]
[1753906236122,3.1,177.25,177.16,109.06]
[1753906237027,6.542312,177.26,177.16,109.06]
[1753906237227,3.1,177.25,177.16,109.06]
[1753906237726,5.6433,177.2,177.16,121.246612]
[1753906238030,3.1,177.2,177.17,3.2]
[1753906238229,5.6436,177.19,177.17,3.2]
[1753906239123,5.6437,177.18,177.17,3.2]
[1753906239729,5.6437,177.18,177.16,115.602312]
[1753906240029,3.1,177.19,177.17,3.2]
[1753906240531,5.6438,177.18,177.17,3.2]
[1753906242132,5.6441,177.17,177.16,6.542312]
[1753906242423,5.6441,177.17,177.16,118.782312]
[1753906244230,5.6441,177.17,177.16,9.742312]
[1753906244528,8.7441,177.17,177.16,6.542312]
[1753906244924,3.1,177.23,177.16,118.782312]
[1753906245125,3.1,177.23,177.16,9.742312]
[1753906245533,17.825112,177.26,177.16,9.742312]
[1753906245534,8.7441,177.17,177.16,6.542312]
[1753906245823,6.542312,177.24,177.14,6.542312]
[1753906246030,5.6447,177.15,177.14,9.742312]
[1753906246232,5.6447,177.15,177.14,118.782312]
[1753906247526,3.1,177.18,177.15,3.2]
[1753906247719,17.825112,177.26,177.17,3.2]
[1753906247921,6.542312,177.3,177.2,3.2]
[1753906248124,6.542312,177.3,177.21,3.2]
[1753906248125,3.1,177.23,177.21,3.2]
[1753906248321,8.7416,177.25,177.23,3.2]
[1753906248537,3.1,177.25,177.24,109.02]
[1753906248833,3.1,177.26,177.24,116.22967525]
[1753906249028,3.1,177.29,177.25,3.2]
[1753906249229,3.1,177.29,177.27,4.00967525]
[1753906249423,8.7405,177.29,177.28,109.02]
[1753906249620,3.1,177.29,177.28,109.02]
[1753906249932,4.00967525,177.29,177.2,4.00967525]
[1753906250226,3.1,177.26,177.21,112.22]
[1753906250423,3.1,177.26,177.21,109.02]
[1753906251426,3.1,177.26,177.18,6.53778781]
[1753906251626,5.643,177.21,177.19,109.0]
[1753906251826,3.1,177.2,177.19,109.0]
[1753906252222,3.1,177.2,177.19,108.98]
[1753906252622,6.53778781,177.28,177.19,108.98]
[1753906252827,3.1,177.21,177.19,112.18]
[1753906254033,8.7429,177.21,177.19,112.18]
[1753906254434,3.1,177.2,177.19,112.18]
[1753906254730,3.1,177.2,177.18,6.53778781]
[1753906254933,3.1,177.22,177.19,108.98]
[1753906255329,3.1,177.2,177.19,108.98]
[1753906256234,8.7431,177.2,177.19,108.98]
[1753906259631,3.27,177.23,177.19,108.98]
[1753906259828,3.27,177.27,177.19,108.98]
[1753906260233,5.643,177.21,177.19,108.98]
[1753906260435,3.27,177.21,177.19,112.09]
[1753906260933,3.27,177.27,177.19,108.98]
[1753906261137,3.27,177.25,177.2,108.94]
[1753906261537,5.6428,177.21,177.2,108.94]
[1753906261743,8.9128,177.21,177.2,108.94]
[1753906262237,3.27,177.21,177.13,3.11]
[1753906262433,6.53778781,177.2,177.13,3.11]
[1753906262738,3.27,177.19,177.14,108.94]
[1753906262940,8.915,177.15,177.14,108.94]
[1753906263337,5.645,177.15,177.14,108.94]
[1753906263537,3.27,177.18,177.15,3.11]
[1753906263734,6.53778781,177.22,177.12,6.53778781]
[1753906263939,3.27,177.08,177.06,3.11]
[1753906264137,3.27,177.12,177.03,382.35]
[1753906264340,3.27,177.1,177.03,379.24]
[1753906264540,3.27,177.1,177.04,112.03]
[1753906264739,3.27,177.1,177.05,3.11]
[1753906265138,3.27,177.1,177.04,108.92]
[1753906265339,6.53778781,177.15,177.06,3.11]
[1753906265340,3.27,177.12,177.06,3.11]
[1753906265741,5.646,177.11,177.06,3.11]
[1753906265944,3.27,177.12,177.08,3.11]
[1753906266250,3.27,177.12,177.09,3.11]
[1753906266452,8.9157,177.12,177.09,3.11]
[1753906266650,3.27,177.17,177.08,3.11]
[1753906268051,5.6452,177.14,177.08,8.7567]
[1753906268255,5.6452,177.14,177.07,115.45778781]
[1753906268562,5.6452,177.14,177.11,3.11]
[1753906268563,8.9152,177.14,177.11,3.11]
[1753906268849,3.27,177.13,177.12,108.94]
[1753906269056,6.53778781,177.19,177.12,108.94]
[1753906269645,3.27,177.18,177.12,108.94]
[1753906270256,5.6454,177.13,177.12,108.94]
[1753906270556,8.9154,177.13,177.12,108.94]
[1753906270752,8.9154,177.13,177.08,5.647]
[1753906270953,8.9154,177.13,177.11,3.11]
[1753906271153,5.6454,177.13,177.09,108.94]
[1753906271355,5.6451,177.14,177.12,3.11]
[1753906271555,11.2836,177.25,177.09,108.94]
[1753906271759,5.6453,177.14,177.1,112.05]
[1753906272057,3.27,177.13,177.11,3.11]
[1753906273158,3.27,177.2,177.12,3.11]
[1753906274258,6.53778781,177.21,177.11,6.53778781]
[1753906274259,5.645,177.15,177.11,6.53778781]
[1753906274557,6.53778781,177.21,177.13,3.11]
[1753906274558,3.27,177.2,177.13,3.11]
[1753906274760,5.6442,177.17,177.13,3.11]
[1753906274954,3.27,177.2,177.13,3.11]
[1753906275151,3.27,177.2,177.14,108.92]
[1753906275559,3.27,177.2,177.13,3.11]
[1753906275857,8.9144,177.16,177.15,108.92]
[1753906276859,5.6451,177.14,177.13,3.11]
[1753906277060,3.27,177.21,177.13,115.43778781]
[1753906277368,3.27,177.2,177.15,3.11]
[1753906277555,11.2831,177.26,177.11,3.11]
[1753906277556,3.27,177.19,177.11,3.11]
[1753906277760,5.6473,177.07,177.06,3.11]
[1753906277954,5.6473,177.07,177.01,9.0429915]
[1753906277955,3.27,177.1,177.05,108.9]
[1753906278362,8.9177,177.06,177.05,108.9]
[1753906279068,5.6487,177.03,177.02,3.11]
[1753906279268,4.01984151,177.03,176.97,3.11]
[1753906279472,3.27,177.0,176.92,3.11]
[1753906279767,3.27,177.0,176.94,4.01984151]
[1753906279966,8.9197,177.0,176.95,3.11]
[1753906280268,3.27,177.04,176.98,7.12984151]
[1753906280474,3.27,177.03,177.0,3.11]
[1753906280773,3.27,177.03,177.01,3.11]
[1753906280963,5.6487,177.04,177.01,3.11]
[1753906281160,3.27,177.04,176.99,108.9]
[1753906281369,3.27,177.04,177.01,3.11]
[1753906281771,6.55240191,177.09,177.01,3.11]
[1753906281973,3.27,177.08,176.99,112.01]
[1753906282271,8.9191,177.02,176.99,112.01]
[1753906282967,5.6491,177.02,176.99,112.01]
[1753906283167,3.27,177.01,177.0,108.92]
[1753906283473,8.9188,177.03,177.0,112.03]
[1753906283771,6.55240191,177.09,177.01,3.11]
[1753906283968,3.27,177.05,177.01,3.11]
[1753906284178,3.27,177.1,177.01,3.11]
[1753906284970,6.55240191,177.11,177.0,115.47240191]
[1753906284971,3.27,177.09,177.02,3.11]
[1753906285170,3.27,177.09,177.02,9.66240191]
[1753906285672,5.6477,177.07,177.02,6.55240191]
[1753906285872,3.27,177.08,177.05,3.11]
[1753906286173,3.27,177.07,177.06,108.92]
[1753906286377,8.9176,177.07,177.06,108.92]
[1753906286575,8.9176,177.07,177.05,3.11]
[1753906286763,6.55240191,177.14,177.06,108.92]
[1753906286968,3.27,177.13,177.06,108.92]
[1753906287372,5.6468,177.1,177.06,108.92]
[1753906287669,3.27,177.13,177.06,108.92]
[1753906287973,5.6464,177.11,177.07,9.66240191]
[1753906288174,8.9164,177.11,177.08,3.11]
[1753906288578,3.27,177.11,177.08,3.11]
[1753906288873,3.27,177.11,177.09,3.25]
[1753906289077,8.9165,177.11,177.06,108.92]
[1753906289374,3.12,177.1,177.08,3.25]
[1753906289972,8.7666,177.1,177.08,3.25]
[1753906290271,3.12,177.1,177.08,3.25]
[1753906290475,3.12,177.13,177.1,3.25]
[1753906290680,3.12,177.13,177.11,112.15]
[1753906290873,3.12,177.14,177.11,112.15]
[1753906291575,8.7656,177.14,177.11,112.15]
[1753906291773,6.55240191,177.2,177.12,3.25]
[1753906292071,5.6457,177.13,177.11,108.9]
[1753906292277,6.55240191,177.17,177.11,108.9]
[1753906292468,5.6459,177.12,177.11,108.9]
[1753906292672,6.55240191,177.17,177.11,108.88]
[1753906293071,5.6459,177.12,177.11,108.88]
[1753906293268,8.7659,177.12,177.11,108.88]
[1753906294067,3.12,177.1,177.08,3.25]
[1753906294271,3.12,177.1,177.09,108.88]
[1753906294478,6.55240191,177.17,177.09,108.88]
[1753906294676,3.12,177.11,177.09,3.25]
[1753906294876,3.12,177.11,177.1,108.88]
[1753906295368,3.12,177.16,177.1,108.88]
[1753906296175,3.12,177.11,177.01,3.25]
[1753906296474,3.12,177.09,177.02,108.86]
[1753906296675,3.12,177.02,177.0,3.25]
[1753906296879,3.12,177.02,177.01,108.86]
[1753906297080,3.12,177.02,176.98,9.80240191]
[1753906297277,6.55240191,177.05,176.96,3.25]
[1753906297484,3.12,177.04,176.95,9.80240191]
[1753906297682,3.12,177.04,176.96,108.86]
[1753906298678,5.6501,176.99,176.97,3.25]
[1753906298881,3.12,177.01,176.98,108.86]
[1753906299077,3.12,177.0,176.98,108.86]
[1753906299275,3.12,177.0,176.97,3.25]
[1753906299471,3.12,177.0,176.98,108.86]
[1753906299472,5.6501,176.99,176.98,108.86]
[1753906299672,3.12,177.04,176.97,3.25]
[1753906299881,3.12,177.04,176.98,108.86]
[1753906300377,5.6494,177.02,176.98,108.86]
[1753906300582,3.12,177.02,176.99,3.25]
[1753906300975,3.12,177.07,176.99,3.25]
[1753906301176,3.12,177.07,177.0,3.25]
[1753906302684,3.12,177.04,177.01,3.25]
[1753906303080,6.55240191,177.1,177.01,3.25]
[1753906303382,3.12,177.06,177.01,108.86]
[1753906304877,6.55240191,177.08,177.01,108.86]
[1753906305177,3.12,177.07,177.01,108.86]
[1753906305384,5.6484,177.05,177.03,3.25]
[1753906305778,3.12,177.06,177.03,3.25]
[1753906305979,3.12,177.1,177.04,6.55240191]
[1753906306175,396.4117,177.19,177.06,3.25]
[1753906306176,3.12,177.09,177.06,3.25]
[1753906306385,3.12,177.15,177.07,112.11]
[1753906306880,5.6463,177.11,177.07,117.7575]
[1753906307089,8.7663,177.11,177.08,3.25]
[1753906307282,8.7663,177.11,177.09,3.25]
[1753906308478,6.55240191,177.16,177.06,6.55240191]
[1753906308677,3.12,177.15,177.09,108.84]
[1753906308987,6.55240191,177.16,177.09,108.84]
[1753906308988,5.6466,177.1,177.09,108.84]
[1753906309192,8.7666,177.1,177.09,108.84]
[1753906309486,5.6466,177.1,177.09,108.84]
[1753906310188,6.55240191,177.1,177.05,108.84]
[1753906310384,3.12,177.09,177.05,108.84]
[1753906310592,5.6479,177.06,177.05,108.84]
[1753906310887,3.12,177.06,176.99,12.20240191]
[1753906311089,3.12,177.06,177.0,108.82]
[1753906311285,8.7689,177.03,177.0,112.07]
[1753906311485,8.7689,177.03,177.0,108.82]
[1753906311678,8.7689,177.03,177.01,112.07]
[1753906312388,5.6491,177.02,177.01,112.07]
[1753906312590,3.12,177.05,177.01,108.82]
[1753906312790,3.12,177.05,177.03,3.25]
[1753906313083,6.55240191,177.1,177.03,3.25]
[1753906313391,3.12,177.09,177.03,3.25]
[1753906313784,5.6485,177.04,177.03,3.25]
[1753906313980,3.12,177.06,177.01,114.4695]
[1753906314184,6.55240191,177.07,176.98,3.25]
[1753906314389,6.55240191,177.07,176.99,108.8]
[1753906314390,3.12,177.06,176.99,108.8]
[1753906314890,3.12,177.02,177.0,3.25]
[1753906315390,8.7695,177.02,177.0,3.25]
[1753906315788,3.12,177.02,177.0,3.25]
[1753906315988,5.6495,177.01,177.0,3.25]
[1753906316887,5.6495,177.01,177.0,112.05]
[1753906317398,5.6501,176.99,176.98,3.25]
[1753906317880,5.651,176.96,176.95,3.25]
[1753906318080,5.651,176.96,176.95,112.05]
[1753906319785,5.651,176.96,176.95,112.03]
[1753906319991,5.651,176.96,176.95,3.25]
[1753906320192,5.651,176.96,176.95,112.03]
[1753906320397,5.651,176.96,176.95,3.25]
[1753906320689,3.14,176.95,176.93,3.03]
[1753906320890,3.14,177.01,176.91,3.03]
[1753906321096,3.14,177.01,176.92,108.78]
[1753906321490,3.14,176.98,176.89,379.62]
[1753906321690,5.6526,176.92,176.9,108.78]
[1753906321988,3.14,176.91,176.86,3.03]
[1753906322290,5.6524,176.92,176.88,3.03]
[1753906322590,5.6524,176.92,176.9,3.03]
[1753906322795,8.7924,176.92,176.9,3.03]
[1753906323495,3.14,176.92,176.9,3.03]
[1753906323699,3.14,176.98,176.9,3.03]
[1753906324183,3.14,176.92,176.9,3.03]
[1753906324388,5.6521,176.93,176.89,108.78]
[1753906324583,3.14,176.91,176.89,111.81]
[1753906324883,3.14,176.93,176.91,3.03]
[1753906325588,3.14,176.98,176.89,108.78]
[1753906325793,3.14,176.93,176.9,3.03]
[1753906326196,3.14,176.93,176.91,3.03]
[1753906326390,3.14,176.96,176.9,9.58240191]
[1753906326591,3.14,177.0,176.92,3.03]
[1753906326794,3.14,176.98,176.96,3.03]
[1753906326992,3.14,176.98,176.97,108.78]
[1753906327393,3.14,176.97,176.92,3.03]
[1753906327593,3.14,176.97,176.93,108.78]
[1753906328103,5.6517,176.94,176.93,108.78]
[1753906328495,8.7917,176.94,176.93,108.78]
[1753906328695,8.7917,176.94,176.92,108.78]
[1753906328999,8.7917,176.94,176.92,111.81]
[1753906329198,5.652,176.93,176.92,111.81]
[1753906329798,5.6518,176.94,176.92,111.81]
[1753906330196,5.652,176.93,176.92,111.81]
[1753906330598,3.14,176.94,176.92,111.81]
[1753906330804,5.652,176.93,176.92,111.81]
[1753906331594,8.792,176.93,176.92,111.81]
[1753906331802,8.792,176.93,176.92,108.78]
[1753906332301,5.6527,176.91,176.89,7.05476795]
[1753906332606,5.6527,176.91,176.9,111.79]
[1753906332798,5.6527,176.91,176.9,3.03]
[1753906333005,5.6527,176.91,176.9,111.79]
[1753906333599,3.14,176.95,176.9,108.76]
[1753906333804,3.14,176.96,176.93,4.02476795]
[1753906334104,5.651,176.96,176.95,3.03]
[1753906334406,3.14,176.98,176.96,3.03]
[1753906334602,5.651,176.97,176.96,3.03]
[1753906334802,3.14,177.0,176.97,3.03]
[1753906334994,3.14,176.99,176.98,108.76]
[1753906335195,5.65,177.0,176.98,108.76]
[1753906335405,5.65,177.0,176.99,7.05476795]
[1753906335603,5.65,177.0,176.98,108.76]
[1753906335604,3.14,177.0,176.98,108.76]
[1753906335906,5.6501,176.99,176.98,115.81476795]
[1753906336099,3.14,177.02,176.99,3.03]
[1753906336300,3.14,177.01,176.99,3.03]
[1753906336500,5.65,177.0,176.99,3.03]
[1753906337301,5.6501,176.99,176.98,112.78476795]
[1753906337505,5.6501,176.99,176.98,115.81476795]
[1753906338107,5.6501,176.99,176.98,111.79]
[1753906338311,5.6501,176.99,176.98,115.81476795]
[1753906338902,5.6501,176.99,176.98,112.78476795]
[1753906339208,5.6501,176.99,176.98,111.79]
[1753906339410,5.6501,176.99,176.98,115.81476795]
[1753906343705,8.7901,176.99,176.98,115.81476795]
[1753906344617,8.7901,176.99,176.98,112.78476795]
[1753906344811,8.7911,176.96,176.95,7.05476795]
[1753906345011,8.7911,176.96,176.95,115.73476795]
[1753906345705,8.7911,176.96,176.95,112.70476795]
[1753906347207,8.7911,176.96,176.95,115.73476795]
[1753906348310,4.02476795,177.04,176.95,112.70476795]
[1753906348521,3.14,177.04,176.99,4.02476795]
[1753906348714,3.14,177.04,177.0,108.66]
[1753906348914,5.6495,177.01,177.0,108.66]
[1753906349115,8.7895,177.01,177.0,108.66]
[1753906351711,14.4372,177.04,176.74,20.85814051]
[1753906351922,3.14,177.03,176.94,4.02476795]
[1753906352124,3.14,177.01,176.95,108.64]
[1753906352832,3.14,177.03,176.97,4.02476795]
[1753906353125,3.14,177.03,176.98,108.64]
[1753906353731,8.7901,176.99,176.98,108.64]
[1753906354131,5.6501,176.99,176.98,111.89]
[1753906354633,8.7901,176.99,176.98,108.64]
[1753906358130,3.14,177.01,176.92,3.25]
[1753906358437,3.14,177.01,176.93,112.62476795]
[1753906358623,3.14,177.01,176.94,111.85]
[1753906358825,11.2984,177.02,176.95,7.27476795]
[1753906359133,3.14,177.0,176.98,3.25]
[1753906359331,8.7898,177.0,176.99,108.58]
[1753906360735,5.6504,176.98,176.97,4.02476795]
[1753906360932,8.7904,176.98,176.97,112.60476795]
[1753906361633,8.7904,176.98,176.97,4.02476795]
[1753906361930,8.7904,176.98,176.97,112.58476795]
[1753906362332,5.6504,176.98,176.97,111.81]
[1753906362527,5.6504,176.98,176.97,115.83476795]
[1753906363235,5.6504,176.98,176.97,111.81]
[1753906363427,5.6517,176.94,176.93,9.26486325]
[1753906363624,5.6517,176.94,176.93,115.83476795]
[1753906364230,5.6515,176.95,176.94,3.25]
[1753906364432,5.6515,176.95,176.94,7.27476795]
[1753906364626,3.14,176.98,176.96,3.25]
[1753906364833,5.6507,176.97,176.96,7.27476795]
[1753906365031,3.14,177.0,176.97,3.25]
[1753906365334,8.7898,177.0,176.99,4.02476795]
[1753906365533,8.7898,177.0,176.99,112.56476795]
[1753906365935,8.7898,177.0,176.99,115.81476795]
[1753906366331,8.7898,177.0,176.99,112.56476795]
[1753906366530,8.7898,177.0,176.99,108.54]
[1753906370641,8.7898,177.0,176.99,108.54]
[1753906372138,8.7898,177.0,176.99,111.79]
[1753906372332,3.14,177.03,176.99,108.48]
[1753906372646,3.14,177.02,177.01,4.02476795]
[1753906372942,8.7893,177.02,177.01,115.75476795]
[1753906373137,3.14,177.07,177.02,3.25]
[1753906373336,3.14,177.07,177.06,4.02476795]
[1753906373539,8.7875,177.07,177.06,112.50476795]
[1753906377147,5.6475,177.07,177.06,115.75476795]
[1753906377745,8.7875,177.07,177.06,115.69476795]
[1753906378543,5.6475,177.07,177.06,115.69476795]
[1753906379148,5.6474,177.08,177.06,115.69476795]
[1753906379348,5.6474,177.08,177.07,7.21476795]
[1753906380451,3.28,177.07,177.04,4.02476795]
[1753906380746,3.28,177.07,177.05,99.8314]
[1753906380951,3.28,177.06,176.98,7.21476795]
[1753906381247,4.02476795,177.05,176.99,108.38]
[1753906381448,3.28,177.0,176.96,4.02476795]
[1753906381640,3.28,177.0,176.97,108.38]
[1753906381840,3.28,176.99,176.97,111.57]
[1753906382046,8.9304,176.98,176.97,108.38]
[1753906382445,8.9314,176.95,176.94,4.02476795]
[1753906382943,8.9314,176.95,176.94,108.36]
[1753906383745,3.28,177.02,176.94,115.57476795]
[1753906383948,3.28,177.02,176.97,4.02476795]
[1753906384146,3.28,177.02,176.98,108.36]
[1753906384348,3.28,176.99,176.98,108.36]
[1753906384949,8.9301,176.99,176.98,108.36]
[1753906385359,3.28,177.01,176.99,3.19]
[1753906385561,3.28,177.01,177.0,4.02476795]
[1753906386067,8.9297,177.01,177.0,4.02476795]
[1753906387862,3.28,177.09,177.01,3.19]
[1753906388163,5.6482,177.05,177.04,4.02476795]
[1753906388565,5.6482,177.05,177.04,7.21476795]
[1753906388761,8.9282,177.05,177.04,4.02476795]
[1753906389265,3.28,177.04,177.02,111.53]
[1753906389464,3.28,177.04,177.03,4.02476795]
[1753906390158,3.28,177.11,177.03,4.02476795]
[1753906390560,5.6485,177.04,177.03,4.02476795]
[1753906390962,5.6485,177.04,177.03,7.21476795]
[1753906392465,3.28,177.11,177.02,111.53]
[1753906392662,3.28,177.11,177.03,4.02476795]
[1753906393157,7.30476795,177.11,177.02,111.53]
[1753906393367,4.02476795,177.11,177.03,4.02476795]
[1753906393669,3.28,177.1,177.03,4.02476795]
[1753906393868,8.9285,177.04,177.03,4.02476795]
[1753906394163,8.9285,177.04,176.97,5.6507]
[1753906394164,3.28,177.04,176.99,4.02476795]
[1753906394368,5.6495,177.01,177.0,108.28]
[1753906394564,8.9295,177.01,177.0,108.28]
[1753906394769,3.28,177.06,176.99,4.02476795]
[1753906394970,8.9295,177.01,177.0,108.28]
[1753906395469,5.6495,177.01,177.0,111.47]
[1753906396370,5.6504,176.98,176.97,3.19]
[1753906396559,4.02476795,177.07,176.97,108.26]
[1753906396764,3.28,177.06,176.99,3.19]
[1753906396963,5.6498,177.0,176.99,3.19]
[1753906397371,5.6498,177.0,176.99,7.21476795]
[1753906397573,3.28,177.04,177.0,3.19]
[1753906397771,3.28,177.04,177.02,3.19]
[1753906398075,3.28,177.12,177.04,3.19]
[1753906398273,23.27152296,177.18,177.03,112.28476795]
[1753906398274,3.28,177.11,177.09,4.02476795]
[1753906398572,3.28,177.1,177.04,3.19]
[1753906398772,4.02476795,177.15,177.06,3.19]
[1753906399078,5.6472,177.08,177.07,4.02476795]
[1753906399273,5.6472,177.08,177.07,7.21476795]
[1753906399472,3.28,177.1,177.08,3.19]
[1753906399669,3.28,177.16,177.07,4.02476795]
[1753906400067,4.02476795,177.11,177.03,4.02476795]
[1753906400367,8.9291,177.02,177.01,115.45476795]
[1753906400771,8.9291,177.02,177.01,111.43]
[1753906401170,8.9291,177.02,177.01,108.24]
[1753906401365,6.55189043,177.11,177.0,6.55189043]
[1753906401366,8.9295,177.01,177.0,6.55189043]
[1753906401566,8.9295,177.01,177.0,114.79189043]
[1753906401773,5.6495,177.01,177.0,6.55189043]
[1753906401977,8.9295,177.01,177.0,114.77189043]
[1753906402369,8.9295,177.01,177.0,108.22]
[1753906402676,3.28,177.01,177.0,108.22]
[1753906403175,8.9295,177.01,177.0,108.22]
[1753906403671,3.28,177.05,177.01,3.19]
[1753906403975,3.28,177.09,177.01,9.74189043]
[1753906404175,5.6492,177.02,177.01,9.74189043]
[1753906404373,3.28,177.05,177.02,3.19]
[1753906404975,5.6485,177.04,177.03,3.19]
[1753906405173,5.6485,177.04,177.03,9.74189043]
[1753906405367,5.649,177.03,177.01,3.19]
[1753906405568,3.28,177.11,177.01,9.74189043]
[1753906405773,3.28,177.11,177.02,111.39]
[1753906406077,3.28,177.11,177.03,3.19]
[1753906406773,8.9288,177.03,177.02,108.2]
[1753906407079,5.6488,177.03,177.02,108.2]
[1753906407274,5.6486,177.04,177.02,108.2]
[1753906407478,5.6486,177.04,177.03,3.19]
[1753906407975,5.6489,177.03,177.02,108.2]
[1753906408174,5.6489,177.03,177.02,111.39]
[1753906408674,5.6492,177.02,177.01,6.55189043]
[1753906408871,5.6492,177.02,177.01,117.85189043]
[1753906409066,8.6592,177.02,177.01,6.55189043]
[1753906409279,3.01,177.02,177.01,108.18]
[1753906409481,3.01,177.01,176.98,9.67189043]
[1753906409777,5.6498,177.0,176.99,111.3]
[1753906409970,8.6598,177.0,176.99,108.18]
[1753906410170,8.6598,177.0,176.99,111.3]
[1753906410573,5.6498,177.0,176.99,111.3]
[1753906410875,11.2939,177.09,177.0,3.12]
[1753906410876,3.01,177.04,177.0,3.12]
[1753906411076,3.01,177.04,177.02,3.12]
[1753906411276,8.6585,177.04,177.03,108.16]
[1753906411675,5.6485,177.04,177.03,111.28]
[1753906412385,8.6585,177.04,177.03,108.16]